fUST/lending_fUST_20250609
["ID","MTS","AMOUNT","RATE_DAILY","PERIOD"]
[365024434,1749409847023,-1896.07,0.00021955,4]
[365024435,1749409847032,-440.0,0.00021955,4]
[365024436,1749409847042,-440.0,0.00021955,4]
[365024437,1749409847052,-1222.95,0.00021955,4]
[365024438,1749409847061,-440.0,0.00021955,4]
[365024439,1749409847072,-440.0,0.00021955,4]
[365024440,1749409847082,-440.0,0.00021955,4]
[365024441,1749409847093,-440.0,0.00021955,4]
[365024442,1749409847103,-151.0,0.00021955,7]
[365024443,1749409847112,-440.0,0.00021956,4]
[365024444,1749409847122,-440.0,0.00021956,4]
[365024445,1749409847132,-380.0,0.00021956,4]
[365024446,1749409847141,-440.0,0.00021956,4]
[365024447,1749409847150,-440.0,0.00021956,4]
[365024448,1749409847160,-440.0,0.00021956,2]
[365024449,1749409847169,-440.0,0.00021956,4]
[365024450,1749409847178,-403.10926114,0.00021956,4]
[365024451,1749409847188,-3000.0,0.0002196,2]
[365024452,1749409847198,-3000.0,0.0002197,2]
[365024453,1749409847208,-504.15916561,0.00021973,2]
[365024454,1749409847217,-205.49080572,0.00021973,2]
[365024455,1749409847227,-600.0,0.00021973,2]
[365024456,1749409847238,-3000.0,0.0002198,2]
[365024457,1749409847248,-3000.0,0.0002199,2]
[365024458,1749409847258,-1000.0,0.00022,22]
[365024459,1749409847267,-3000.0,0.00022,2]
[365024460,1749409847277,-1555.0,0.00022,2]
[365024461,1749409847286,-1555.0,0.00022,2]
[365024462,1749409847296,-1555.0,0.00022,2]
[365024463,1749409847306,-1555.0,0.00022,2]
[365024464,1749409847316,-1555.0,0.00022,2]
[365024465,1749409847326,-1555.0,0.00022,2]
[365024466,1749409847335,-1555.0,0.00022,2]
[365024467,1749409847345,-1555.0,0.00022,2]
[365024468,1749409847355,-1555.0,0.00022,2]
[365024469,1749409847365,-1555.0,0.00022,2]
[365024470,1749409847375,-1689.94,0.00022,7]
[365024471,1749409847385,-151.0,0.00022,7]
[365024472,1749409847395,-167.197805,0.00022,7]
[365024473,1749409847404,-873.366947,0.00022,7]
[365024474,1749409847414,-873.366947,0.00022,7]
[365024475,1749409847424,-151.0,0.00022,7]
[365024476,1749409847434,-151.0,0.00022,7]
[365024477,1749409847444,-151.0,0.00022,7]
[365024478,1749409847454,-13851.61161081,0.00022003,6]
[365024479,1749409847465,-151.0,0.00022004,7]
[365024480,1749409847475,-151.0,0.00022004,7]
[365024481,1749409847486,-151.0,0.00022004,7]
[365024482,1749409847496,-151.0,0.00022004,7]
[365024483,1749409847506,-151.0,0.00022004,7]
[365024484,1749409847516,-151.0,0.00022004,7]
[365024485,1749409847525,-151.0,0.00022004,7]
[365024486,1749409847535,-3000.0,0.0002201,2]
[365024487,1749409847545,-3000.0,0.0002202,2]
[365024488,1749409847557,-3000.0,0.0002203,2]
[365024489,1749409847566,-3000.0,0.0002204,2]
[365024490,1749409847576,-504.21707405,0.00022041,2]
[365024491,1749409847587,-3000.0,0.0002205,2]
[365024492,1749409847596,-193.231427,0.0002205,7]
[365024493,1749409847606,-193.231427,0.0002205,7]
[365024494,1749409847615,-151.0,0.0002205,7]
[365024495,1749409847625,-3470.944811,0.0002205,2]
[365024496,1749409847635,-3470.944811,0.0002205,2]
[365024497,1749409847644,-3000.0,0.0002206,2]
[365024498,1749409847654,-3000.0,0.0002207,2]
[365024499,1749409847664,-151.0,0.0002207,7]
[365024500,1749409847674,-192.929993,0.0002207,7]
[365024501,1749409847683,-192.929993,0.0002207,7]
[365024502,1749409847693,-151.0,0.0002207,7]
[365024503,1749409847702,-151.0,0.0002207,7]
[365024504,1749409847712,-151.0,0.0002207,7]
[365024505,1749409847722,-151.0,0.0002207,7]
[365024506,1749409847731,-3000.0,0.0002208,2]
[365024507,1749409847740,-3000.0,0.0002209,2]
[365024508,1749409847751,-151.0,0.0002209,7]
[365024509,1749409847760,-4624.997494,0.000221,2]
[365024510,1749409847773,-160.065807,0.000221,7]
[365024511,1749409847783,-160.065807,0.000221,7]
[365024512,1749409847792,-353.504817,0.0002211,2]
[365024513,1749409847802,-306.0,0.0002211,2]
[365024514,1749409847813,-311.5050251,0.0002211,2]
[365024515,1749409847823,-1195.2689705,0.0002211,2]
[365024516,1749409847832,-158.6873432,0.0002211,2]
[365024517,1749409847843,-207.4,0.00022131,2]
[365024518,1749409847852,-5000.0,0.00022131,2]
[365024519,1749409847862,-151.0,0.00022141,7]
[365024520,1749409847872,-13851.61161081,0.00022141,6]
[365024521,1749409847883,-500.0,0.00022177,2]
[365024522,1749409847893,-500.0,0.00022177,2]
[365024523,1749409847903,-1000.0,0.00022177,2]
[365024524,1749409847913,-995.29,0.00022228,4]
[365024525,1749409847923,-1300.22,0.00022228,4]
[365024526,1749409847933,-1127.97,0.00022228,4]
[365024527,1749409847943,-440.0,0.00022228,4]
[365024528,1749409847954,-1717.66,0.00022228,4]
[365024529,1749409847964,-990.62,0.00022228,4]
[365024530,1749409847973,-1359.79,0.00022228,4]
[365024531,1749409847984,-440.0,0.00022228,4]
[365024532,1749409847993,-440.0,0.00022228,4]
[365024533,1749409848003,-440.0,0.00022228,4]
[365024534,1749409848012,-151.0,0.00022229,7]
[365024535,1749409848022,-440.0,0.00022229,4]
[365024536,1749409848031,-440.0,0.00022229,4]
[365024537,1749409848041,-440.0,0.00022229,4]
[365024538,1749409848050,-873.366947,0.00022229,7]
[365024539,1749409848060,-995.49,0.00022229,4]
[365024540,1749409848070,-873.366947,0.00022229,7]
[365024541,1749409848080,-440.0,0.00022229,4]
[365024542,1749409848090,-151.0,0.00022229,7]
[365024543,1749409848100,-282.341576,0.00022229,7]
[365024544,1749409848109,-440.0,0.00022229,4]
[365024545,1749409848119,-1896.07,0.00022229,4]
[365024546,1749409848129,-440.0,0.00022229,4]
[365024547,1749409848139,-440.0,0.00022229,4]
[365024548,1749409848148,-440.0,0.00022229,4]
[365024549,1749409848158,-1222.95,0.00022229,4]
[365024550,1749409848168,-440.0,0.00022229,4]
[365024551,1749409848178,-440.0,0.0002223,4]
[365024552,1749409848187,-440.0,0.0002223,4]
[365024553,1749409848199,-440.0,0.0002223,4]
[365024554,1749409848209,-440.0,0.0002223,2]
[365024555,1749409848219,-440.0,0.0002223,4]
[365024556,1749409848230,-151.0,0.00022231,7]
[365024557,1749409848240,-151.0,0.00022231,7]
[365024558,1749409848250,-153.701016,0.00022279,7]
[365024559,1749409848260,-151.0,0.00022279,7]
[365024560,1749409848270,-151.0,0.00022279,7]
[365024561,1749409848280,-151.0,0.00022279,7]
[365024562,1749409848290,-13851.61161081,0.00022279,6]
[365024563,1749409848300,-319.93,0.000223,7]
[365024564,1749409848310,-13851.61161081,0.00022417,7]
[365024565,1749409848320,-657.74859035,0.00022468,2]
[365024566,1749409848330,-995.29,0.00022502,4]
[365024567,1749409848340,-1300.22,0.00022502,4]
[365024568,1749409848349,-1127.97,0.00022502,4]
[365024569,1749409848360,-440.0,0.00022502,4]
[365024570,1749409848370,-1717.66,0.00022502,4]
[365024571,1749409848380,-990.62,0.00022502,4]
[365024572,1749409848390,-1359.79,0.00022502,4]
[365024573,1749409848400,-440.0,0.00022502,4]
[365024574,1749409848410,-440.0,0.00022502,4]
[365024575,1749409848420,-328.92,0.00022502,4]
[365024576,1749409848430,-440.0,0.00022503,4]
[365024577,1749409848440,-440.0,0.00022503,4]
[365024578,1749409848450,-440.0,0.00022503,4]
[365024579,1749409848459,-995.49,0.00022503,4]
[365024580,1749409848469,-440.0,0.00022503,4]
[365024581,1749409848480,-440.0,0.00022503,4]
[365024582,1749409848490,-1896.07,0.00022503,4]
[365024583,1749409848500,-440.0,0.00022503,4]
[365024584,1749409848510,-440.0,0.00022503,4]
[365024585,1749409848520,-440.0,0.00022503,4]
[365024586,1749409848530,-1222.95,0.00022503,4]
[365024587,1749409848540,-440.0,0.00022503,4]
[365024588,1749409848550,-151.0,0.00022503,7]
[365024589,1749409848560,-440.0,0.00022504,4]
[365024590,1749409848571,-440.0,0.00022504,4]
[365024591,1749409848581,-440.0,0.00022504,4]
[365024592,1749409848592,-151.0,0.00022505,7]
[365024593,1749409848602,-192.929993,0.00022505,7]
[365024594,1749409848612,-192.929993,0.00022505,7]
[365024595,1749409848622,-151.0,0.00022505,7]
[365024596,1749409848632,-151.0,0.00022505,7]
[365024597,1749409848642,-151.0,0.00022505,7]
[365024598,1749409848652,-151.0,0.00022505,7]
[365024599,1749409848661,-1200.0,0.00022521,2]
[365024600,1749409848671,-121411.59591787,0.00022549,2]
[365024601,1749409848682,-13851.61161081,0.00022555,7]
[365024602,1749409848691,-167.2222613,0.00022677,2]
[365024603,1749409848701,-151.0,0.00022693,7]
[365024604,1749409848711,-873.366947,0.00022693,7]
[365024605,1749409848721,-873.366947,0.00022693,7]
[365024606,1749409848730,-151.0,0.00022693,7]
[365024607,1749409848740,-151.0,0.00022693,7]
[365024608,1749409848750,-13851.61161081,0.00022693,7]
[365024609,1749409848761,-1500.0,0.00022724,2]
[365024610,1749409848775,-299.637199,0.00022728,7]
[365024611,1749409848785,-995.29,0.00022776,4]
[365024612,1749409848795,-1300.22,0.00022776,4]
[365024613,1749409848805,-1127.97,0.00022776,4]
[365024614,1749409848816,-579.17,0.00022776,4]
[365024615,1749409848827,-1717.66,0.00022776,4]
[365024616,1749409848837,-990.62,0.00022776,4]
[365024617,1749409848847,-1359.79,0.00022776,4]
[365024618,1749409848857,-440.0,0.00022776,4]
[365024619,1749409848996,-475.54,0.00022776,4]
[365024620,1749409849007,-440.0,0.00022777,4]
[365024621,1749409849017,-440.0,0.00022777,4]
[365024622,1749409849027,-440.0,0.00022777,4]
[365024623,1749409849036,-995.49,0.00022777,4]
[365024624,1749409849046,-440.0,0.00022777,4]
[365024625,1749409849056,-440.0,0.00022777,4]
[365024626,1749409849066,-1896.07,0.00022777,4]
[365024627,1749409849076,-440.0,0.00022777,4]
[365024628,1749409849085,-440.0,0.00022777,4]
[365024629,1749409849095,-440.0,0.00022777,4]
[365024630,1749409849106,-1222.95,0.00022777,4]
[365024631,1749409849117,-440.0,0.00022777,4]
[365024632,1749409849127,-440.0,0.00022778,4]
[365024633,1749409849137,-440.0,0.00022778,4]
[365024634,1749409849147,-440.0,0.00022778,4]
[365024635,1749409849157,-2392.49,0.00022801,2]
[365024636,1749409849168,-912.15993345,0.00022802,3]
[365024637,1749409849177,-2323.26023382,0.00022804,2]
[365024638,1749409849187,-13851.61161081,0.00022831,8]
[365024639,1749409849197,-158.6873432,0.00022932,2]
[365024640,1749409849207,-13851.61161081,0.00022969,8]
[365024641,1749409849216,-151.0,0.00022969,7]
[365024642,1749409849226,-265.491957,0.00022969,7]
[365024643,1749409849237,-151.0,0.00022969,7]
[365024644,1749409849247,-151.0,0.00022969,7]
[365024645,1749409849257,-1300.0,0.00023,2]
[365024646,1749409849267,-1000.0,0.00023,23]
[365024647,1749409849277,-151.0,0.00023,7]
[365024648,1749409849288,-192.929993,0.00023,7]
[365024649,1749409849298,-192.929993,0.00023,7]
[365024650,1749409849309,-151.0,0.00023,7]
[365024651,1749409849320,-151.0,0.00023,7]
[365024652,1749409849330,-151.0,0.00023,7]
[365024653,1749409849340,-151.0,0.00023,7]
[365024654,1749409849350,-1447.378081,0.00023003,3]
[365024655,1749409849360,-995.29,0.0002305,4]
[365024656,1749409849371,-1300.22,0.0002305,4]
[365024657,1749409849382,-1127.97,0.0002305,4]
[365024658,1749409849392,-1717.66,0.0002305,4]
[365024659,1749409849402,-990.62,0.0002305,4]
[365024660,1749409849412,-1359.79,0.0002305,4]
[365024661,1749409849422,-440.0,0.0002305,4]
[365024662,1749409849432,-440.0,0.00023051,4]
[365024663,1749409849442,-440.0,0.00023051,4]
[365024664,1749409849451,-440.0,0.00023051,4]
[365024665,1749409849462,-995.49,0.00023051,4]
[365024666,1749409849471,-542.85,0.00023051,4]
[365024667,1749409849482,-440.0,0.00023051,4]
[365024668,1749409849492,-1896.07,0.00023051,4]
[365024669,1749409849502,-440.0,0.00023051,4]
[365024670,1749409849512,-440.0,0.00023051,4]
[365024671,1749409849521,-440.0,0.00023051,4]
[365024672,1749409849531,-1222.95,0.00023051,4]
[365024674,1749409849540,-440.0,0.00023051,4]
[365024675,1749409849551,-193.231427,0.00023052,7]
[365024676,1749409849560,-440.0,0.00023052,4]
[365024677,1749409849570,-193.231427,0.00023052,7]
[365024678,1749409849580,-151.0,0.00023052,7]
[365024679,1749409849590,-160.065807,0.00023052,7]
[365024680,1749409849600,-160.065807,0.00023052,7]
[365024681,1749409849610,-3470.944811,0.00023052,2]
[365024682,1749409849619,-3470.944811,0.00023052,2]
[365024683,1749409849630,-440.0,0.00023052,4]
[365024684,1749409849639,-1800.0,0.00023068,2]
[365024685,1749409849649,-800.0,0.00023072,2]
[365024686,1749409849659,-1689.94,0.000231,7]
[365024687,1749409849669,-500.0,0.00023103,2]
[365024688,1749409849679,-13851.61161081,0.00023107,8]
[365024689,1749409849689,-151.0,0.00023107,7]
[365024690,1749409849701,-873.366947,0.00023107,7]
[365024691,1749409849711,-873.366947,0.00023107,7]
[365024692,1749409849720,-151.0,0.00023107,7]
[365024693,1749409849730,-249.551701,0.00023107,7]
[365024694,1749409849740,-151.0,0.00023159,7]
[365024695,1749409849750,-193.231427,0.00023159,7]
[365024696,1749409849760,-193.231427,0.00023159,7]
[365024697,1749409849774,-151.0,0.00023159,7]
[365024698,1749409849784,-151.0,0.00023159,7]
[365024699,1749409849793,-3470.944811,0.00023159,2]
[365024700,1749409849803,-3470.944811,0.00023159,2]
[365024701,1749409849814,-151.0,0.000232,7]
[365024702,1749409849823,-151.0,0.000232,7]
[365024703,1749409849833,-192.929993,0.000232,7]
[365024704,1749409849844,-192.929993,0.000232,7]
[365024705,1749409849853,-151.0,0.000232,7]
[365024706,1749409849863,-243.314096,0.000232,7]
[365024707,1749409849873,-151.0,0.000232,7]
[365024708,1749409849883,-189.410349,0.000232,7]
[365024709,1749409849893,-13851.61161081,0.00023245,8]
[365024710,1749409849902,-800.0,0.00023253,2]
[365024711,1749409849912,-2000.0,0.00023272,2]
[365024712,1749409849921,-500.0,0.00023273,2]
[365024713,1749409849932,-300.0,0.00023273,2]
[365024714,1749409849942,-173.02349563,0.0002329,4]
[365024715,1749409849951,-173.02349563,0.0002329,4]
[365024716,1749409849961,-173.02349563,0.0002329,4]
[365024717,1749409849971,-173.02349563,0.0002329,4]
[365024718,1749409849981,-173.02349563,0.0002329,4]
[365024719,1749409849990,-173.02349563,0.0002329,4]
[365024720,1749409850000,-173.02349563,0.0002329,4]
[365024721,1749409850011,-173.02349563,0.0002329,4]
[365024722,1749409850021,-173.02349563,0.0002329,4]
[365024723,1749409850031,-173.02349563,0.0002329,4]
[365024724,1749409850040,-173.02349563,0.0002329,4]
[365024725,1749409850050,-173.02349563,0.0002329,4]
[365024726,1749409850060,-173.02349563,0.0002329,4]
[365024727,1749409850069,-173.02349563,0.0002329,4]
[365024728,1749409850079,-173.02349563,0.0002329,4]
[365024729,1749409850089,-173.02349563,0.0002329,4]
[365024730,1749409850098,-173.02349563,0.0002329,4]
[365024731,1749409850107,-173.02349563,0.0002329,4]
[365024732,1749409850118,-173.02349563,0.0002329,4]
[365024733,1749409850128,-173.02,0.0002329,4]
[365024734,1749409850138,-403.72148981,0.0002329,4]
[365024735,1749409850147,-403.72148981,0.0002329,4]
[365024736,1749409850157,-403.72148981,0.0002329,4]
[365024737,1749409850167,-403.72148981,0.0002329,4]
[365024738,1749409850177,-403.72148981,0.0002329,4]
[365024739,1749409850187,-403.72148981,0.0002329,4]
[365024740,1749409850197,-403.72148981,0.0002329,4]
[365024741,1749409850207,-403.72148981,0.0002329,4]
[365024742,1749409850217,-403.72148981,0.0002329,4]
[365024743,1749409850227,-403.72148981,0.0002329,4]
[365024744,1749409850238,-403.72148981,0.0002329,4]
[365024745,1749409850248,-403.72148981,0.0002329,4]
[365024746,1749409850257,-403.72148981,0.0002329,4]
[365024747,1749409850267,-403.72148981,0.0002329,4]
[365024748,1749409850277,-403.72148981,0.0002329,4]
[365024749,1749409850286,-403.72148981,0.0002329,4]
[365024750,1749409850295,-403.72148981,0.0002329,4]
[365024751,1749409850305,-403.72148981,0.0002329,4]
[365024752,1749409850314,-403.72148981,0.0002329,4]
[365024753,1749409850324,-403.72,0.0002329,4]
[365024754,1749409850333,-156.73560998,0.0002329,4]
[365024755,1749409850343,-156.73560998,0.0002329,4]
[365024756,1749409850353,-156.73560998,0.0002329,4]
[365024757,1749409850363,-156.73560998,0.0002329,4]
[365024758,1749409850373,-156.73560998,0.0002329,4]
[365024759,1749409850383,-156.73560998,0.0002329,4]
[365024760,1749409850393,-156.73560998,0.0002329,4]
[365024761,1749409850403,-156.73560998,0.0002329,4]
[365024762,1749409850412,-156.73560998,0.0002329,4]
[365024763,1749409850422,-156.73560998,0.0002329,4]
[365024764,1749409850432,-156.73560998,0.0002329,4]
[365024765,1749409850442,-156.73,0.0002329,4]
[365024766,1749409850452,-219.42985397,0.0002329,4]
[365024767,1749409850463,-219.42985397,0.0002329,4]
[365024768,1749409850473,-219.42985397,0.0002329,4]
[365024769,1749409850482,-219.42985397,0.0002329,4]
[365024770,1749409850492,-219.42985397,0.0002329,4]
[365024771,1749409850501,-219.42985397,0.0002329,4]
[365024772,1749409850510,-219.42985397,0.0002329,4]
[365024773,1749409850520,-219.42985397,0.0002329,4]
[365024774,1749409850530,-219.42985397,0.0002329,4]
[365024775,1749409850539,-219.42985397,0.0002329,4]
[365024776,1749409850549,-219.42985397,0.0002329,4]
[365024777,1749409850560,-219.42985397,0.0002329,4]
[365024778,1749409850569,-219.42985397,0.0002329,4]
[365024779,1749409850580,-219.42985397,0.0002329,4]
[365024780,1749409850590,-219.42985397,0.0002329,4]
[365024781,1749409850600,-219.42985397,0.0002329,4]
[365024782,1749409850610,-219.42985397,0.0002329,4]
[365024783,1749409850620,-219.42985397,0.0002329,4]
[365024784,1749409850630,-219.42985397,0.0002329,4]
[365024785,1749409850640,-219.42,0.0002329,4]
[365024786,1749409850651,-282.78899437,0.0002329,4]
[365024787,1749409850662,-282.78899437,0.0002329,4]
[365024788,1749409850671,-282.78899437,0.0002329,4]
[365024789,1749409850681,-282.78899437,0.0002329,4]
[365024790,1749409850690,-282.78899437,0.0002329,4]
[365024791,1749409850701,-282.78899437,0.0002329,4]
[365024792,1749409850710,-282.78899437,0.0002329,4]
[365024793,1749409850719,-282.78899437,0.0002329,4]
[365024794,1749409850729,-282.78899437,0.0002329,4]
[365024795,1749409850740,-282.78899437,0.0002329,4]
[365024796,1749409850749,-282.78899437,0.0002329,4]
[365024797,1749409850760,-282.78899437,0.0002329,4]
[365024798,1749409850774,-282.78899437,0.0002329,4]
[365024799,1749409850783,-282.78899437,0.0002329,4]
[365024800,1749409850793,-282.78899437,0.0002329,4]
[365024801,1749409850802,-282.78899437,0.0002329,4]
[365024802,1749409850813,-282.78899437,0.0002329,4]
[365024803,1749409850822,-282.78899437,0.0002329,4]
[365024804,1749409850831,-282.78899437,0.0002329,4]
[365024805,1749409850841,-282.78,0.0002329,4]
[365024806,1749409850851,-659.84098686,0.0002329,4]
[365024807,1749409850861,-659.84098686,0.0002329,4]
[365024808,1749409850871,-659.84098686,0.0002329,4]
[365024809,1749409850881,-659.84098686,0.0002329,4]
[365024810,1749409850890,-659.84098686,0.0002329,4]
[365024811,1749409850900,-659.84098686,0.0002329,4]
[365024812,1749409850910,-659.84098686,0.0002329,4]
[365024813,1749409850919,-659.84098686,0.0002329,4]
[365024814,1749409850929,-659.84098686,0.0002329,4]
[365024815,1749409850938,-659.84098686,0.0002329,4]
[365024816,1749409850947,-659.84098686,0.0002329,4]
[365024817,1749409850956,-659.84098686,0.0002329,4]
[365024818,1749409850965,-659.84098686,0.0002329,4]
[365024819,1749409850975,-659.84098686,0.0002329,4]
[365024820,1749409850984,-659.84098686,0.0002329,4]
[365024821,1749409850993,-659.84098686,0.0002329,4]
[365024822,1749409851002,-659.84098686,0.0002329,4]
[365024823,1749409851012,-659.84098686,0.0002329,4]
[365024824,1749409851021,-659.84098686,0.0002329,4]
[365024825,1749409851030,-659.84,0.0002329,4]
[365024826,1749409851039,-5504.09506245,0.000233,2]
[365024827,1749409851266,-544.95,0.00020037,2]
[365024828,1749409851276,-24.78240964,0.00020859,2]
[365024829,1749409851289,-126.21759036,0.00020859,2]
[365024830,1749409851298,-335.19865844,0.000233,2]
[365024831,1749409851310,-1052.99656483,0.000233,2]
[365024832,1749409851325,-945.2989708,0.000233,2]
[365024833,1749409876828,500.0,0.00024,120]
[365024834,1749409890564,736.6,0.00016863,2]
[365024837,1749409972371,729.13,0.00016593,2]
[365024839,1749410052305,719.85,0.00017552,2]
[365024842,1749410103123,648.03371972,0.00018,2]
[365024843,1749410103146,46.64399366,0.00018,2]
[365024844,1749410132862,710.69,0.00017572,2]
[365024846,1749410183058,411.383341,0.00013699,2]
[365024848,1749410213778,718.83,0.00016719,2]
[365024849,1749410293311,748.82,0.00016705,2]
[365024850,1749410374733,747.98,0.00016775,2]
[365024851,1749410403087,694.67771338,0.00018,2]
[365024853,1749410454736,747.03,0.00016757,2]
[365024854,1749410536576,741.07,0.00016751,2]
[365024855,1749410540594,157.47437542,0.00013699,2]
[365024856,1749410616107,579.99257654,0.00016772,2]
[365024857,1749410616131,151.64742346,0.00016772,2]
[365024858,1749410671297,154.6601396,6.7e-07,2]
[365024859,1749410697450,724.24,0.00016776,2]
[365024861,1749410779131,715.02,0.00016783,2]
[365024862,1749410861302,705.92,0.00016951,2]
[365024864,1749410923009,167.19780446,0.0002,120]
[365024865,1749410923429,1246.410348,0.00024565,120]
[365024866,1749410925839,354.28480711,0.00015,5]
[365024871,1749410942555,696.94,0.00016767,2]
[365024881,1749411021822,688.07,0.00016902,2]
[365024931,1749411038452,-313.8,0.00018034,2]
[365024933,1749411038464,-201.04381416,0.00018208,2]
[365024935,1749411038474,-1376.13,0.00018439,2]
[365024937,1749411038484,-176.9129097,0.00018505,2]
[365024940,1749411038495,-205.39642876,0.00018603,2]
[365024942,1749411038505,-300.0,0.00019176,2]
[365024944,1749411038516,-994.0,0.00019176,2]
[365024946,1749411038526,-300.0,0.00019177,2]
[365024947,1749411038538,-300.0,0.00019177,2]
[365024949,1749411038548,-300.0,0.00019177,2]
[365024952,1749411038560,-293.0,0.00019177,2]
[365024953,1749411038571,-300.0,0.00019177,2]
[365024955,1749411038580,-437.90536502,0.00019177,2]
[365024957,1749411038590,-440.0,0.00019178,2]
[365024959,1749411038599,-464.55,0.00019178,2]
[365024960,1749411038610,-440.0,0.00019178,2]
[365024961,1749411038620,-380.0,0.00019178,2]
[365024962,1749411038630,-440.0,0.00019178,2]
[365024963,1749411038640,-440.0,0.00019178,2]
[365024964,1749411038650,-440.0,0.00019178,2]
[365024965,1749411038660,-440.0,0.00019178,2]
[365024966,1749411038670,-440.0,0.00019178,2]
[365024967,1749411038680,-440.0,0.00019178,2]
[365024968,1749411038692,-410.0,0.00019178,2]
[365024969,1749411038702,-320.0,0.00019178,2]
[365024970,1749411038711,-409.3622305,0.00019178,2]
[365024971,1749411038720,-469.88,0.00019178,2]
[365024972,1749411038730,-74.82247788,0.00019178,2]
[365024973,1749411038748,-365.17752212,0.00019178,2]
[365024974,1749411038758,-440.0,0.00019178,2]
[365024975,1749411038767,-1360.11,0.00019178,2]
[365024976,1749411038777,-440.0,0.00019178,2]
[365024977,1749411038787,-440.0,0.00019178,2]
[365024978,1749411038796,-562.77,0.00019178,2]
[365024979,1749411038806,-440.0,0.00019178,2]
[365024980,1749411038815,-440.0,0.00019178,2]
[365024981,1749411038825,-440.0,0.00019178,2]
[365024982,1749411038834,-846.99,0.00019178,2]
[365024983,1749411038843,-440.0,0.00019178,2]
[365024984,1749411038853,-440.0,0.00019178,2]
[365024985,1749411038862,-440.0,0.00019178,2]
[365024986,1749411038872,-440.0,0.00019178,2]
[365024987,1749411038882,-440.0,0.00019178,2]
[365024988,1749411038891,-440.0,0.00019178,2]
[365024989,1749411038901,-440.0,0.00019178,2]
[365024990,1749411038910,-440.0,0.00019178,2]
[365024991,1749411038921,-454.8189457,0.00019178,2]
[365024992,1749411038933,-546.06,0.00019178,2]
[365024993,1749411038943,-155.07353218,0.00019178,2]
[365024994,1749411040769,-284.92646782,0.00019178,2]
[365024995,1749411040779,-355.57884103,0.00019178,2]
[365024996,1749411040791,-84.42115897,0.00019178,2]
[365024997,1749411040801,-319.25165102,0.00019178,2]
[365024998,1749411040813,-120.74834898,0.00019178,2]
[365024999,1749411040824,-440.0,0.00019178,2]
[365025000,1749411040834,-440.0,0.00019178,2]
[365025001,1749411040843,-188.8018593,0.00019178,2]
[365025009,1749411041027,-762.8481407,0.00019178,2]
[365025010,1749411041044,-866.81,0.00019178,2]
[365025011,1749411041054,-440.0,0.00019178,2]
[365025012,1749411041064,-681.86,0.00019178,2]
[365025013,1749411041073,-787.85,0.00019178,2]
[365025014,1749411041083,-440.0,0.00019178,2]
[365025015,1749411041093,-138.3086325,0.00019178,2]
[365025025,1749411043694,-301.6913675,0.00019178,2]
[365025026,1749411043704,-440.0,0.00019178,2]
[365025027,1749411043715,-167.91792747,0.00019178,2]
[365025028,1749411043724,-440.0,0.00019178,2]
[365025029,1749411043735,-440.0,0.00019178,2]
[365025030,1749411043752,-849.67,0.00019178,2]
[365025031,1749411043763,-440.0,0.00019178,2]
[365025032,1749411043773,-1358.04,0.00019178,2]
[365025033,1749411043783,-1089.86,0.00019178,2]
[365025034,1749411043793,-440.0,0.00019178,2]
[365025035,1749411043802,-352.2716264,0.00019178,2]
[365025036,1749411043812,-440.0,0.00019178,2]